Workbook

Sheet أدخال
A5: Date | B5: Invoice No. | C5: Project Name | D5: Included | E5: Amount | F5: Main Type | G5: Sub Type | H5: Method of Payment | I5: Cheque Date | J5: Remaining Amount | K5: Notes
A6: 2019-07-20 | C6: حمد | D6: Ok | E6: 250 | F6: Operation | G6: مواد | H6: نقدا | I6: 0 | J6: 0
A7: 2019-07-25 | C7: مسعد | D7: Ok | E7: 350 | F7: Expenses | G7: نقل وانتقالات | H7: نقدا | I7: 0 | J7: 0 | K7: الرياض

Sheet اليومية
J2: =SUM(اليومية!$J$4:$J$9965) -> 70200 | K2: =SUM(اليومية!$K$4:$K$9965) -> 3446.190476 | L2: =SUM(اليومية!$L$4:$L$9965) -> 68923.80952
A3: =MAX(A4:A8175) ->  | B3: المشروع الواحد | C3: No. | D3: Date | E3: Invoice No. | F3: Project Name | G3: Contract Value | H3: Contract No. | I3: Included | J3: Amount | K3: Tax | L3: Amount Without Tax | M3: Dr Cr | N3: Main Type | O3: Sub Type | P3: Method of Payment | Q3: Cheque Date | R3: Remaining Amount | S3: Notes
A4: =IF(B4="","",COUNTIF(B4:$B$4,B4)) ->  | B4: =IF(AND(#REF!&#REF!="")*AND(F4=#REF!),1,IF(AND(D4>=#REF!,اليومية!D4<=#REF!)*AND(F4=#REF!),1,"")) ->  | C4: 1 | D4: 2019-04-15 | E4: 1111 | F4: حمد | I4: Ok | J4: 15000 | K4: =IF(اليومية!$N4="Salary","",IF(AND(J4>0,OR(I4="ok")),اليومية!$J4/21,اليومية!$J4*0.05)) -> 714.2857143 | L4: =IF(اليومية!$I4="Ok",اليومية!$J4/1.05,اليومية!$J4) -> 14285.71429 | N4: Income | O4: دفعة مقدمة | P4: نقدا
A5: =IF(B5="","",COUNTIF(B$4:$B5,B5)) ->  | B5: =IF(AND(#REF!&#REF!="")*AND(F5=#REF!),1,IF(AND(D5>=#REF!,اليومية!D5<=#REF!)*AND(F5=#REF!),1,"")) ->  | C5: =IF(F4="<>","",MAX(C4+1)) -> 2 | D5: 2019-04-20 | E5: 2525 | F5: احمد | J5: 12000 | K5: =IF(اليومية!$N5="Salary","",IF(AND(J5>0,OR(I5="ok")),اليومية!$J5/21,اليومية!$J5*0.05)) -> 600 | L5: =IF(اليومية!$I5="Ok",اليومية!$J5/1.05,اليومية!$J5) -> 12000 | N5: Income | O5: دفعة مقدمة | P5: شيك نقدا
A6: =IF(B6="","",COUNTIF(B$4:$B6,B6)) ->  | B6: =IF(AND(#REF!&#REF!="")*AND(F6=#REF!),1,IF(AND(D6>=#REF!,اليومية!D6<=#REF!)*AND(F6=#REF!),1,"")) ->  | C6: =IF(F5="<>","",MAX(C5+1)) -> 3 | D6: 2019-04-25 | E6: 7952 | F6: احمد | I6: Ok | J6: 250 | K6: =IF(اليومية!$N6="Salary","",IF(AND(J6>0,OR(I6="ok")),اليومية!$J6/21,اليومية!$J6*0.05)) -> 11.9047619 | L6: =IF(اليومية!$I6="Ok",اليومية!$J6/1.05,اليومية!$J6) -> 238.0952381 | N6: Operation | O6: مقاول باطن - محمد | P6: نقدا
A7: =IF(B7="","",COUNTIF(B$4:$B7,B7)) ->  | B7: =IF(AND(#REF!&#REF!="")*AND(F7=#REF!),1,IF(AND(D7>=#REF!,اليومية!D7<=#REF!)*AND(F7=#REF!),1,"")) ->  | C7: 4 | D7: 2019-05-01 | E7: 8521 | F7: شريف | J7: 400 | K7: =IF(اليومية!$N7="Salary","",IF(AND(J7>0,OR(I7="ok")),اليومية!$J7/21,اليومية!$J7*0.05)) -> 20 | L7: =IF(اليومية!$I7="Ok",اليومية!$J7/1.05,اليومية!$J7) -> 400 | N7: Expenses | O7: تليفون وفاكس وبريد | P7: نقدا
A8: =IF(B8="","",COUNTIF(B$4:$B8,B8)) ->  | B8: =IF(AND(#REF!&#REF!="")*AND(F8=#REF!),1,IF(AND(D8>=#REF!,اليومية!D8<=#REF!)*AND(F8=#REF!),1,"")) ->  | C8: 5 | D8: 2019-05-15 | E8: 6521 | F8: ناصر | I8: Ok | J8: 750 | K8: =IF(اليومية!$N8="Salary","",IF(AND(J8>0,OR(I8="ok")),اليومية!$J8/21,اليومية!$J8*0.05)) -> 35.71428571 | L8: =IF(اليومية!$I8="Ok",اليومية!$J8/1.05,اليومية!$J8) -> 714.2857143 | N8: Expenses | O8: رسوم عمل وعمال وجوازات ومصالح حكومية | P8: نقدي ومتبقي | R8: 350 | S8: دلال
A9: =IF(B9="","",COUNTIF(B$4:$B9,B9)) ->  | B9: =IF(AND(#REF!&#REF!="")*AND(F9=#REF!),1,IF(AND(D9>=#REF!,اليومية!D9<=#REF!)*AND(F9=#REF!),1,"")) ->  | C9: 6 | D9: 2019-05-21 | E9: 1456 | F9: خليفة | J9: 5000 | K9: =IF(اليومية!$N9="Salary","",IF(AND(J9>0,OR(I9="ok")),اليومية!$J9/21,اليومية!$J9*0.05)) -> 250 | L9: =IF(اليومية!$I9="Ok",اليومية!$J9/1.05,اليومية!$J9) -> 5000 | N9: Income | O9: دفعة أولى | P9: شيك نقدا
A10: =IF(B10="","",COUNTIF(B$4:$B10,B10)) ->  | B10: =IF(AND(#REF!&#REF!="")*AND(F10=#REF!),1,IF(AND(D10>=#REF!,اليومية!D10<=#REF!)*AND(F10=#REF!),1,"")) ->  | C10: 7 | D10: 2019-06-05 | F10: حمد | J10: 2500 | K10: =IF(اليومية!$N10="Salary","",IF(AND(J10>0,OR(I10="ok")),اليومية!$J10/21,اليومية!$J10*0.05)) -> 125 | L10: =IF(اليومية!$I10="Ok",اليومية!$J10/1.05,اليومية!$J10) -> 2500 | N10: Income | O10: دفعة أولى | P10: نقدا
A11: =IF(B11="","",COUNTIF(B$4:$B11,B11)) ->  | B11: =IF(AND(#REF!&#REF!="")*AND(F11=#REF!),1,IF(AND(D11>=#REF!,اليومية!D11<=#REF!)*AND(F11=#REF!),1,"")) ->  | C11: 8 | D11: 2019-06-15 | E11: 123345 | F11: الشرياني | I11: Ok | J11: 1000 | K11: =IF(اليومية!$N11="Salary","",IF(AND(J11>0,OR(I11="ok")),اليومية!$J11/21,اليومية!$J11*0.05)) -> 47.61904762 | L11: =IF(اليومية!$I11="Ok",اليومية!$J11/1.05,اليومية!$J11) -> 952.3809524 | N11: Suppliers | O11: شركة النصير | P11: شيك آجل | Q11: 2019-05-12 | R11: 1000
A12: =IF(B12="","",COUNTIF(B$4:$B12,B12)) ->  | B12: =IF(AND(#REF!&#REF!="")*AND(F12=#REF!),1,IF(AND(D12>=#REF!,اليومية!D12<=#REF!)*AND(F12=#REF!),1,"")) ->  | C12: 9 | D12: 2019-06-20 | E12: 54545 | F12: يوسف | I12: Ok | J12: 7700 | K12: =IF(اليومية!$N12="Salary","",IF(AND(J12>0,OR(I12="ok")),اليومية!$J12/21,اليومية!$J12*0.05)) -> 366.6666667 | L12: =IF(اليومية!$I12="Ok",اليومية!$J12/1.05,اليومية!$J12) -> 7333.333333 | N12: Income | O12: دفعة أولى | P12: نقدا | R12: 0
A13: =IF(B13="","",COUNTIF(B$4:$B13,B13)) ->  | B13: =IF(AND(#REF!&#REF!="")*AND(F13=#REF!),1,IF(AND(D13>=#REF!,اليومية!D13<=#REF!)*AND(F13=#REF!),1,"")) ->  | C13: 10 | D13: 2019-06-20 | F13: حسنين | I13: Ok | J13: 100 | K13: =IF(اليومية!$N13="Salary","",IF(AND(J13>0,OR(I13="ok")),اليومية!$J13/21,اليومية!$J13*0.05)) -> 4.761904762 | L13: =IF(اليومية!$I13="Ok",اليومية!$J13/1.05,اليومية!$J13) -> 95.23809524 | N13: Expenses | O13: محروقات | P13: نقدا
A14: =IF(B14="","",COUNTIF(B$4:$B14,B14)) ->  | B14: =IF(AND(#REF!&#REF!="")*AND(F14=#REF!),1,IF(AND(D14>=#REF!,اليومية!D14<=#REF!)*AND(F14=#REF!),1,"")) ->  | C14: 11 | D14: 2019-06-22 | F14: ناصر | I14: Ok | J14: 1500 | K14: =IF(اليومية!$N14="Salary","",IF(AND(J14>0,OR(I14="ok")),اليومية!$J14/21,اليومية!$J14*0.05)) -> 71.42857143 | L14: =IF(اليومية!$I14="Ok",اليومية!$J14/1.05,اليومية!$J14) -> 1428.571429 | N14: Operation | O14: مواد | P14: نقدا
A15: =IF(B15="","",COUNTIF(B$4:$B15,B15)) ->  | B15: =IF(AND(#REF!&#REF!="")*AND(F15=#REF!),1,IF(AND(D15>=#REF!,اليومية!D15<=#REF!)*AND(F15=#REF!),1,"")) ->  | C15: 12 | D15: 2019-06-25 | F15: يحيى | I15: Ok | J15: 500 | K15: =IF(اليومية!$N15="Salary","",IF(AND(J15>0,OR(I15="ok")),اليومية!$J15/21,اليومية!$J15*0.05)) -> 23.80952381 | L15: =IF(اليومية!$I15="Ok",اليومية!$J15/1.05,اليومية!$J15) -> 476.1904762 | N15: Suppliers | O15: شركة النصير | P15: نقدا
A16: =IF(B16="","",COUNTIF(B$4:$B16,B16)) ->  | B16: =IF(AND(#REF!&#REF!="")*AND(F16=#REF!),1,IF(AND(D16>=#REF!,اليومية!D16<=#REF!)*AND(F16=#REF!),1,"")) ->  | C16: 13 | D16: 2019-06-25 | F16: ناصر | J16: 7500 | K16: =IF(اليومية!$N16="Salary","",IF(AND(J16>0,OR(I16="ok")),اليومية!$J16/21,اليومية!$J16*0.05)) -> 375 | L16: =IF(اليومية!$I16="Ok",اليومية!$J16/1.05,اليومية!$J16) -> 7500 | N16: Income | O16: دفعة مقدمة | P16: نقدا
A17: =IF(B17="","",COUNTIF(B$4:$B17,B17)) ->  | B17: =IF(AND(#REF!&#REF!="")*AND(F17=#REF!),1,IF(AND(D17>=#REF!,اليومية!D17<=#REF!)*AND(F17=#REF!),1,"")) ->  | C17: 14 | D17: 2019-06-25 | F17: خليفة | J17: 8000 | K17: =IF(اليومية!$N17="Salary","",IF(AND(J17>0,OR(I17="ok")),اليومية!$J17/21,اليومية!$J17*0.05)) -> 400 | L17: =IF(اليومية!$I17="Ok",اليومية!$J17/1.05,اليومية!$J17) -> 8000 | N17: Income | O17: دفعة ثانية | P17: نقدا
A18: =IF(B18="","",COUNTIF(B$4:$B18,B18)) ->  | B18: =IF(AND(#REF!&#REF!="")*AND(F18=#REF!),1,IF(AND(D18>=#REF!,اليومية!D18<=#REF!)*AND(F18=#REF!),1,"")) ->  | C18: 15 | D18: 2019-06-30 | F18: ميثاء | J18: 500 | K18: =IF(اليومية!$N18="Salary","",IF(AND(J18>0,OR(I18="ok")),اليومية!$J18/21,اليومية!$J18*0.05)) -> 25 | L18: =IF(اليومية!$I18="Ok",اليومية!$J18/1.05,اليومية!$J18) -> 500 | N18: Expenses | O18: نقل وانتقالات | P18: نقدا
A19: =IF(B19="","",COUNTIF(B$4:$B19,B19)) ->  | B19: =IF(AND(#REF!&#REF!="")*AND(F19=#REF!),1,IF(AND(D19>=#REF!,اليومية!D19<=#REF!)*AND(F19=#REF!),1,"")) ->  | C19: 16 | D19: 2019-07-01 | F19: حسنين | J19: 3500 | K19: =IF(اليومية!$N19="Salary","",IF(AND(J19>0,OR(I19="ok")),اليومية!$J19/21,اليومية!$J19*0.05)) -> 175 | L19: =IF(اليومية!$I19="Ok",اليومية!$J19/1.05,اليومية!$J19) -> 3500 | N19: Income | O19: دفعة مقدمة | P19: شيك نقدا
A20: =IF(B20="","",COUNTIF(B$4:$B20,B20)) ->  | B20: =IF(AND(#REF!&#REF!="")*AND(F20=#REF!),1,IF(AND(D20>=#REF!,اليومية!D20<=#REF!)*AND(F20=#REF!),1,"")) ->  | C20: 17 | D20: 2019-07-05 | F20: خليفة | J20: 4000 | K20: =IF(اليومية!$N20="Salary","",IF(AND(J20>0,OR(I20="ok")),اليومية!$J20/21,اليومية!$J20*0.05)) -> 200 | L20: =IF(اليومية!$I20="Ok",اليومية!$J20/1.05,اليومية!$J20) -> 4000 | N20: Income | O20: تحت حساب | P20: نقدا
A21: =IF(B21="","",COUNTIF(B$4:$B21,B21)) ->  | B21: =IF(AND(#REF!&#REF!="")*AND(F21=#REF!),1,IF(AND(D21>=#REF!,اليومية!D21<=#REF!)*AND(F21=#REF!),1,"")) ->  | C21: =IF(F20="<>","",MAX(C20+1)) -> 18 | K21: =IF(اليومية!$N21="Salary","",IF(AND(J21>0,OR(I21="ok")),اليومية!$J21/21,اليومية!$J21*0.05)) -> 0 | L21: =IF(اليومية!$I21="Ok",اليومية!$J21/1.05,اليومية!$J21) -> 0
